fUST/lending_fUST_20250201
["ID","MTS","AMOUNT","RATE_DAILY","PERIOD"]
[351171534,1738389050431,-1220.32,0.00016712,2]
[351171536,1738389050441,-635.75,0.00016712,2]
[351171538,1738389050451,-500.0,0.00016712,2]
[351171540,1738389050460,-500.0,0.00016712,2]
[351171542,1738389050470,-500.0,0.00016712,2]
[351171544,1738389050480,-156.15143459,0.00016712,2]
[351171546,1738389050490,-500.0,0.00016712,2]
[351171548,1738389050499,-623.75795833,0.00016712,2]
[351171550,1738389050508,-519.19,0.00016712,2]
[351171552,1738389050518,-502.92311621,0.00016712,2]
[351171554,1738389050527,-500.0,0.00016712,2]
[351171556,1738389050537,-500.0,0.00016712,2]
[351171558,1738389050547,-500.0,0.00016712,2]
[351171560,1738389050556,-500.0,0.00016712,2]
[351171562,1738389050566,-500.0,0.00016712,2]
[351171564,1738389050575,-500.0,0.00016712,2]
[351171566,1738389050585,-508.44641942,0.00016712,2]
[351171568,1738389050593,-500.0,0.00016712,2]
[351171570,1738389050603,-500.0,0.00016712,2]
[351171572,1738389050612,-1075.25,0.00016712,2]
[351171575,1738389050622,-500.0,0.00016712,2]
[351171577,1738389050631,-500.0,0.00016712,2]
[351171579,1738389050641,-500.0,0.00016712,2]
[351171581,1738389050652,-500.0,0.00016712,2]
[351171583,1738389050661,-817.56,0.00016712,2]
[351171585,1738389050671,-500.0,0.00016712,2]
[351171587,1738389050680,-500.0,0.00016712,2]
[351171589,1738389050689,-1839.94,0.00016712,2]
[351171591,1738389050699,-196.64442811,0.00016712,2]
[351171592,1738389050708,-500.0,0.00016712,2]
[351171594,1738389050717,-500.0,0.00016712,2]
[351171596,1738389050726,-500.0,0.00016712,2]
[351171598,1738389050736,-500.0,0.00016712,2]
[351171600,1738389050745,-500.0,0.00016712,2]
[351171602,1738389050755,-825.7,0.00016712,2]
[351171605,1738389050764,-500.0,0.00016712,2]
[351171606,1738389050773,-500.0,0.00016712,2]
[351171608,1738389050782,-500.0,0.00016712,2]
[351171610,1738389050795,-549.67,0.00016712,2]
[351171612,1738389050804,-1034.38,0.00016712,2]
[351171614,1738389050814,-500.0,0.00016712,2]
[351171616,1738389050823,-500.0,0.00016712,2]
[351171618,1738389050833,-590.92,0.00016712,2]
[351171620,1738389050843,-500.0,0.00016712,2]
[351171622,1738389050852,-2609.95,0.00016712,2]
[351171624,1738389050861,-500.0,0.00016712,2]
[351171625,1738389050871,-500.0,0.00016712,2]
[351171626,1738389050880,-500.0,0.00016712,2]
[351171627,1738389050889,-1000.0,0.00016712,7]
[351171628,1738389050898,-500.0,0.00016712,2]
[351171629,1738389050908,-500.0,0.00016712,2]
[351171630,1738389050918,-503.6496915,0.00016712,2]
[351171631,1738389050927,-833.06,0.00016712,2]
[351171632,1738389050936,-500.0,0.00016712,2]
[351171633,1738389050946,-500.0,0.00016712,2]
[351171634,1738389050956,-500.0,0.00016712,2]
[351171635,1738389050965,-1159.11,0.00016712,2]
[351171636,1738389050974,-500.0,0.00016712,2]
[351171637,1738389050983,-500.0,0.00016712,2]
[351171638,1738389050994,-500.0,0.00016712,2]
[351171639,1738389051003,-151.0,0.000168,2]
[351171640,1738389051013,-151.0,0.000168,2]
[351171641,1738389051022,-151.0,0.000168,2]
[351171642,1738389051032,-151.0,0.000168,2]
[351171643,1738389051041,-192.0,0.00016808,2]
[351171644,1738389051051,-151.0,0.00016849,2]
[351171645,1738389051061,-172.427042,0.00016849,2]
[351171646,1738389051070,-172.427041,0.00016849,2]
[351171647,1738389051080,-500.0,0.00016849,2]
[351171648,1738389051089,-500.0,0.00016849,2]
[351171649,1738389051098,-500.0,0.00016849,2]
[351171650,1738389051108,-500.0,0.00016849,2]
[351171651,1738389051118,-500.0,0.00016849,2]
[351171652,1738389051127,-500.0,0.00016849,2]
[351171653,1738389051136,-500.0,0.00016849,2]
[351171654,1738389051146,-500.0,0.00016849,2]
[351171655,1738389051155,-500.0,0.00016849,2]
[351171656,1738389051164,-500.0,0.00016849,2]
[351171657,1738389051174,-500.0,0.00016849,2]
[351171658,1738389051184,-500.0,0.00016849,2]
[351171659,1738389051194,-500.0,0.00016849,2]
[351171660,1738389051203,-500.0,0.00016849,2]
[351171661,1738389051212,-619.15,0.00016849,2]
[351171662,1738389051222,-500.0,0.00016849,2]
[351171663,1738389051232,-500.0,0.00016849,2]
[351171664,1738389051241,-500.0,0.00016849,2]
[351171665,1738389051319,-500.0,0.00016849,2]
[351171667,1738389051329,-500.0,0.00016849,2]
[351171669,1738389051339,-500.0,0.00016849,2]
[351171671,1738389051350,-500.0,0.00016849,2]
[351171673,1738389051359,-500.0,0.00016849,2]
[351171674,1738389051368,-500.0,0.00016849,2]
[351171676,1738389051378,-500.0,0.00016849,2]
[351171678,1738389051388,-500.0,0.00016849,2]
[351171680,1738389051398,-500.0,0.00016849,2]
[351171682,1738389051407,-500.0,0.00016849,2]
[351171683,1738389051417,-500.0,0.00016849,2]
[351171685,1738389051426,-500.0,0.00016849,2]
[351171687,1738389051435,-500.0,0.00016849,2]
[351171689,1738389051444,-500.0,0.00016849,2]
[351171690,1738389051454,-500.0,0.00016849,2]
[351171691,1738389051463,-508.12380458,0.00016849,2]
[351171692,1738389051473,-500.0,0.00016849,2]
[351171693,1738389051483,-500.0,0.00016849,2]
[351171694,1738389051492,-500.0,0.00016849,2]
[351171695,1738389051502,-500.0,0.00016849,2]
[351171696,1738389051511,-500.0,0.00016849,2]
[351171697,1738389051520,-500.0,0.00016849,2]
[351171698,1738389051529,-500.0,0.00016849,2]
[351171699,1738389051539,-173.38060431,0.00016849,2]
[351171700,1738389051549,-500.0,0.00016849,2]
[351171701,1738389051559,-500.0,0.00016849,2]
[351171702,1738389051568,-500.0,0.00016849,2]
[351171703,1738389051578,-500.0,0.00016849,2]
[351171704,1738389051588,-500.0,0.00016849,2]
[351171705,1738389051597,-500.0,0.00016849,2]
[351171706,1738389051607,-500.0,0.00016849,2]
[351171707,1738389051616,-500.0,0.00016849,2]
[351171708,1738389051625,-54978.28,0.00016849,2]
[351171709,1738389051635,-633.5,0.00016849,2]
[351171710,1738389051645,-500.0,0.00016849,2]
[351171711,1738389051654,-649.334849,0.00016849,2]
[351171712,1738389051664,-500.0,0.00016849,2]
[351171713,1738389051674,-500.0,0.00016849,2]
[351171714,1738389051692,-500.0,0.00016849,2]
[351171715,1738389051702,-500.0,0.00016849,2]
[351171716,1738389051711,-500.0,0.00016849,2]
[351171717,1738389051721,-500.0,0.00016849,2]
[351171718,1738389051730,-1043.7,0.00016849,2]
[351171719,1738389051739,-500.0,0.00016849,2]
[351171720,1738389051749,-3190.69,0.00016849,2]
[351171721,1738389051758,-526.54458044,0.00016849,2]
[351171722,1738389051768,-500.0,0.00016849,2]
[351171723,1738389051779,-500.0,0.00016849,2]
[351171724,1738389051793,-500.0,0.00016849,2]
[351171725,1738389051803,-500.0,0.00016849,2]
[351171726,1738389051813,-500.0,0.00016849,2]
[351171727,1738389051822,-1220.32,0.00016849,2]
[351171728,1738389051833,-635.75,0.00016849,2]
[351171729,1738389051843,-500.0,0.00016849,2]
[351171730,1738389051852,-500.0,0.00016849,2]
[351171731,1738389051862,-500.0,0.00016849,2]
[351171732,1738389051872,-519.19,0.00016849,2]
[351171733,1738389051882,-510.48061614,0.00016849,2]
[351171734,1738389051892,-500.0,0.00016849,2]
[351171735,1738389051902,-500.0,0.00016849,2]
[351171736,1738389051911,-485.715675,0.00016849,2]
[351171737,1738389051921,-500.0,0.00016849,2]
[351171738,1738389051931,-500.0,0.00016849,2]
[351171739,1738389051940,-500.0,0.00016849,2]
[351171740,1738389051957,-500.0,0.00016849,2]
[351171741,1738389051976,-1075.25,0.00016849,2]
[351171743,1738389051990,-649.60758222,0.00016849,2]
[351171745,1738389052006,-500.0,0.00016849,2]
[351171746,1738389052024,-500.0,0.00016849,2]
[351171747,1738389052040,-817.56,0.00016849,2]
[351171748,1738389052059,-500.0,0.00016849,2]
[351171749,1738389052073,-500.0,0.00016849,2]
[351171750,1738389052088,-1839.94,0.00016849,2]
[351171752,1738389052104,-378.99498982,0.00016849,2]
[351171754,1738389052117,-500.0,0.00016849,2]
[351171757,1738389052132,-500.0,0.00016849,2]
[351171759,1738389052146,-500.0,0.00016849,2]
[351171761,1738389052161,-825.7,0.00016849,2]
[351171764,1738389052177,-592.95,0.00016849,2]
[351171766,1738389052193,-500.0,0.00016849,2]
[351171767,1738389052206,-500.0,0.00016849,2]
[351171768,1738389052218,-549.67,0.00016849,2]
[351171769,1738389052235,-1034.38,0.00016849,2]
[351171770,1738389052250,-273.96154025,0.00016849,2]
[351171771,1738389052262,-590.92,0.00016849,2]
[351171772,1738389052276,-2609.95,0.00016849,2]
[351171773,1738389052289,-500.0,0.00016849,2]
[351171774,1738389052302,-500.0,0.00016849,2]
[351171775,1738389052315,-500.0,0.00016849,2]
[351171776,1738389052328,-1000.0,0.00016849,7]
[351171777,1738389052342,-500.0,0.00016849,2]
[351171778,1738389052355,-500.0,0.00016849,2]
[351171779,1738389052368,-833.06,0.00016849,2]
[351171780,1738389052381,-500.0,0.00016849,2]
[351171781,1738389052394,-1159.11,0.00016849,2]
[351171782,1738389052407,-500.0,0.00016849,2]
[351171783,1738389052420,-500.0,0.00016849,2]
[351171784,1738389052434,-500.0,0.00016849,2]
[351171785,1738389052447,-151.0,0.000169,2]
[351171786,1738389052460,-11600.16,0.000169,2]
[351171787,1738389052474,-10473.09,0.000169,2]
[351171788,1738389052488,-151.0,0.000169,2]
[351171789,1738389052500,-151.0,0.000169,2]
[351171790,1738389052514,-151.0,0.000169,2]
[351171791,1738389052527,-2190.9289486,0.000169,2]
[351171792,1738389052541,-511.54215196,0.00016986,2]
[351171793,1738389052554,-500.0,0.00016986,2]
[351171794,1738389052568,-605.96443041,0.00016986,2]
[351171795,1738389052581,-500.0,0.00016986,2]
[351171796,1738389052595,-500.0,0.00016986,2]
[351171797,1738389052609,-500.0,0.00016986,2]
[351171798,1738389052622,-500.0,0.00016986,2]
[351171799,1738389052635,-500.0,0.00016986,2]
[351171800,1738389052647,-500.0,0.00016986,2]
[351171801,1738389052660,-500.0,0.00016986,2]
[351171802,1738389052673,-500.0,0.00016986,2]
[351171803,1738389052687,-293.2204986,0.00016986,2]
[351171804,1738389052700,-500.0,0.00016986,2]
[351171805,1738389052713,-619.15,0.00016986,2]
[351171806,1738389052725,-500.0,0.00016986,2]
[351171807,1738389052738,-500.0,0.00016986,2]
[351171808,1738389052751,-500.0,0.00016986,2]
[351171809,1738389052764,-500.0,0.00016986,2]
[351171810,1738389052777,-500.0,0.00016986,2]
[351171811,1738389052793,-500.0,0.00016986,2]
[351171812,1738389052805,-500.0,0.00016986,2]
[351171813,1738389052818,-500.0,0.00016986,2]
[351171814,1738389052831,-500.0,0.00016986,2]
[351171815,1738389052957,-500.0,0.00016986,2]
[351171816,1738389052974,-500.0,0.00016986,2]
[351171817,1738389052984,-500.0,0.00016986,2]
[351171818,1738389052994,-500.0,0.00016986,2]
[351171819,1738389053003,-500.0,0.00016986,2]
[351171820,1738389053013,-500.0,0.00016986,2]
[351171821,1738389053022,-500.0,0.00016986,2]
[351171822,1738389053032,-500.0,0.00016986,2]
[351171823,1738389053042,-500.0,0.00016986,2]
[351171824,1738389053051,-500.0,0.00016986,2]
[351171825,1738389053060,-500.0,0.00016986,2]
[351171826,1738389053069,-500.0,0.00016986,2]
[351171827,1738389053079,-500.0,0.00016986,2]
[351171828,1738389053089,-500.0,0.00016986,2]
[351171829,1738389053098,-517.42,0.00016986,2]
[351171830,1738389053107,-500.0,0.00016986,2]
[351171831,1738389053116,-500.0,0.00016986,2]
[351171832,1738389053125,-500.0,0.00016986,2]
[351171833,1738389053135,-164.53,0.00016986,2]
[351171834,1738389053146,-500.0,0.00016986,2]
[351171835,1738389053156,-500.0,0.00016986,2]
[351171836,1738389053165,-500.0,0.00016986,2]
[351171837,1738389053175,-500.0,0.00016986,2]
[351171838,1738389053184,-54978.28,0.00016986,2]
[351171839,1738389053194,-633.5,0.00016986,2]
[351171840,1738389053204,-500.0,0.00016986,2]
[351171841,1738389053214,-500.0,0.00016986,2]
[351171842,1738389053224,-500.0,0.00016986,2]
[351171843,1738389053234,-153.98931206,0.00016986,2]
[351171844,1738389053243,-500.0,0.00016986,2]
[351171845,1738389053253,-500.0,0.00016986,2]
[351171846,1738389053262,-1043.7,0.00016986,2]
[351171847,1738389053272,-500.0,0.00016986,2]
[351171848,1738389053281,-3190.69,0.00016986,2]
[351171849,1738389053291,-500.0,0.00016986,2]
[351171850,1738389053301,-623.54004501,0.00016986,2]
[351171851,1738389053312,-500.0,0.00016986,2]
[351171852,1738389053322,-500.0,0.00016986,2]
[351171853,1738389053332,-1220.32,0.00016986,2]
[351171854,1738389053341,-635.75,0.00016986,2]
[351171855,1738389053351,-500.0,0.00016986,2]
[351171856,1738389053361,-500.0,0.00016986,2]
[351171857,1738389053371,-519.19,0.00016986,2]
[351171858,1738389053381,-500.0,0.00016986,2]
[351171859,1738389053390,-545.31912858,0.00016986,2]
[351171860,1738389053400,-500.0,0.00016986,2]
[351171861,1738389053410,-500.0,0.00016986,2]
[351171862,1738389053419,-500.0,0.00016986,2]
[351171863,1738389053429,-500.0,0.00016986,2]
[351171864,1738389053438,-1075.25,0.00016986,2]
[351171865,1738389053447,-500.0,0.00016986,2]
[351171866,1738389053457,-500.0,0.00016986,2]
[351171867,1738389053467,-817.56,0.00016986,2]
[351171868,1738389053476,-613.93141583,0.00016986,2]
[351171869,1738389053486,-500.0,0.00016986,2]
[351171870,1738389053496,-1839.94,0.00016986,2]
[351171871,1738389053505,-500.0,0.00016986,2]
[351171872,1738389053514,-500.0,0.00016986,2]
[351171873,1738389053523,-500.0,0.00016986,2]
[351171874,1738389053532,-825.7,0.00016986,2]
[351171875,1738389053543,-500.0,0.00016986,2]
[351171876,1738389053553,-500.0,0.00016986,2]
[351171877,1738389053562,-549.67,0.00016986,2]
[351171878,1738389053571,-1034.38,0.00016986,2]
[351171879,1738389053581,-590.92,0.00016986,2]
[351171880,1738389053591,-2609.95,0.00016986,2]
[351171881,1738389053601,-500.0,0.00016986,2]
[351171882,1738389053610,-500.0,0.00016986,2]
[351171883,1738389053619,-500.0,0.00016986,2]
[351171884,1738389053629,-1000.0,0.00016986,7]
[351171885,1738389053638,-500.0,0.00016986,2]
[351171886,1738389053648,-833.06,0.00016986,2]
[351171887,1738389053658,-500.0,0.00016986,2]
[351171888,1738389053667,-1159.11,0.00016986,2]
[351171889,1738389053677,-500.0,0.00016986,2]
[351171890,1738389053686,-500.0,0.00016986,2]
[351171891,1738389053696,-500.0,0.00016986,2]
[351171892,1738389053705,-151.0,0.00017,2]
[351171893,1738389053714,-151.0,0.000171,2]
[351171894,1738389053724,-151.0,0.000171,2]
[351171895,1738389053734,-151.0,0.000171,2]
[351171896,1738389053743,-2190.92894837,0.00017107,2]
[351171897,1738389053754,-1004.63004831,0.00017121,2]
[351171898,1738389053763,-1001.07010886,0.00017121,2]
[351171899,1738389053773,-501.284518,0.00017121,2]
[351171900,1738389053785,-1000.78903733,0.00017121,2]
[351171901,1738389053798,-500.0,0.00017123,2]
[351171902,1738389053808,-500.0,0.00017123,2]
[351171903,1738389053817,-500.0,0.00017123,2]
[351171904,1738389053826,-589.9,0.00017123,2]
[351171905,1738389053836,-500.0,0.00017123,2]
[351171906,1738389053845,-500.0,0.00017123,2]
[351171907,1738389053855,-509.97210173,0.00017123,2]
[351171908,1738389053865,-500.0,0.00017123,2]
[351171909,1738389053875,-619.15,0.00017123,2]
[351171910,1738389053885,-500.0,0.00017123,2]
[351171911,1738389053895,-500.0,0.00017123,2]
[351171912,1738389053905,-500.0,0.00017123,2]
[351171913,1738389053915,-500.0,0.00017123,2]
[351171914,1738389053926,-300.64630285,0.00017123,2]
[351171915,1738389053936,-500.0,0.00017123,2]
[351171916,1738389053945,-587.45,0.00017123,2]
[351171917,1738389053954,-500.0,0.00017123,2]
[351171918,1738389053964,-500.0,0.00017123,2]
[351171919,1738389053973,-500.0,0.00017123,2]
[351171920,1738389053982,-330.0803141,0.00017123,2]
[351171921,1738389053991,-500.0,0.00017123,2]
[351171922,1738389054002,-500.0,0.00017123,2]
[351171923,1738389054011,-508.76,0.00017123,2]
[351171924,1738389054022,-500.0,0.00017123,2]
[351171925,1738389054032,-500.0,0.00017123,2]
[351171926,1738389054041,-500.0,0.00017123,2]
[351171927,1738389054051,-500.0,0.00017123,2]
[351171928,1738389054061,-500.0,0.00017123,2]
[351171929,1738389054071,-500.0,0.00017123,2]
[351171930,1738389054080,-500.0,0.00017123,2]
[351171931,1738389054091,-500.0,0.00017123,2]
[351171932,1738389054100,-500.0,0.00017123,2]
[351171933,1738389054111,-54978.28,0.00017123,2]
[351171934,1738389054120,-633.5,0.00017123,2]
[351171935,1738389054130,-605.0,0.00017123,2]
[351171936,1738389054139,-500.0,0.00017123,2]
[351171937,1738389054149,-500.0,0.00017123,2]
[351171938,1738389054159,-500.0,0.00017123,2]
[351171939,1738389054168,-500.0,0.00017123,2]
[351171940,1738389054177,-1043.7,0.00017123,2]
[351171941,1738389054187,-3190.69,0.00017123,2]
[351171942,1738389054197,-500.0,0.00017123,2]
[351171943,1738389054207,-500.0,0.00017123,2]
[351171944,1738389054217,-500.0,0.00017123,2]
[351171945,1738389054228,-1220.32,0.00017123,2]
[351171946,1738389054237,-635.75,0.00017123,2]
[351171947,1738389054246,-500.0,0.00017123,2]
[351171948,1738389054256,-500.0,0.00017123,2]
[351171949,1738389054265,-519.19,0.00017123,2]
[351171950,1738389054275,-500.0,0.00017123,2]
[351171951,1738389054284,-500.0,0.00017123,2]
[351171952,1738389054293,-500.0,0.00017123,2]
[351171953,1738389054302,-500.0,0.00017123,2]
[351171954,1738389054312,-1075.25,0.00017123,2]
[351171955,1738389054322,-500.0,0.00017123,2]
[351171956,1738389054331,-500.0,0.00017123,2]
[351171957,1738389054341,-817.56,0.00017123,2]
[351171958,1738389054351,-500.0,0.00017123,2]
[351171959,1738389054361,-1839.94,0.00017123,2]
[351171960,1738389054371,-500.0,0.00017123,2]
[351171961,1738389054381,-500.0,0.00017123,2]
[351171962,1738389054391,-500.0,0.00017123,2]
[351171963,1738389054401,-825.7,0.00017123,2]
[351171964,1738389054411,-500.0,0.00017123,2]
[351171965,1738389054420,-549.67,0.00017123,2]
[351171966,1738389054430,-1034.38,0.00017123,2]
[351171967,1738389054439,-590.92,0.00017123,2]
[351171968,1738389054449,-2609.95,0.00017123,2]
[351171969,1738389054459,-403.80463845,0.00017123,2]
[351171970,1738389054468,-500.0,0.00017123,2]
[351171971,1738389054478,-500.0,0.00017123,2]
[351171972,1738389054488,-1000.0,0.00017123,7]
[351171973,1738389054497,-500.0,0.00017123,2]
[351171974,1738389054507,-833.06,0.00017123,2]
[351171975,1738389054516,-500.0,0.00017123,2]
[351171976,1738389054526,-1159.11,0.00017123,2]
[351171977,1738389054535,-516.01,0.00017123,2]
[351171978,1738389054544,-500.0,0.00017123,2]
[351171979,1738389054553,-500.0,0.00017123,2]
[351171980,1738389054562,-558.32525273,0.00017192,2]
[351171981,1738389054572,-151.0,0.000172,2]
[351171982,1738389054581,-214.03421001,0.00017259,2]
[351171983,1738389054591,-500.0,0.0001726,2]
[351171984,1738389054600,-500.0,0.0001726,2]
[351171985,1738389054610,-500.0,0.0001726,2]
[351171986,1738389054620,-216.27498767,0.0001726,2]
[351171987,1738389054629,-500.0,0.0001726,2]
[351171988,1738389054639,-500.0,0.0001726,2]
[351171989,1738389054649,-619.15,0.0001726,2]
[351171990,1738389054658,-500.0,0.0001726,2]
[351171991,1738389054667,-500.0,0.0001726,2]
[351171992,1738389054677,-500.0,0.0001726,2]
[351171993,1738389054687,-500.0,0.0001726,2]
[351171994,1738389054697,-500.0,0.0001726,2]
[351171995,1738389054707,-500.0,0.0001726,2]
[351171996,1738389054716,-500.0,0.0001726,2]
[351171997,1738389054726,-500.0,0.0001726,2]
[351171998,1738389054736,-500.0,0.0001726,2]
[351171999,1738389054746,-500.0,0.0001726,2]
[351172000,1738389054754,-231.03,0.0001726,2]
[351172001,1738389054855,-500.0,0.0001726,2]
[351172002,1738389054865,-500.0,0.0001726,2]
[351172003,1738389054876,-259.33907256,0.0001726,2]
[351172004,1738389054886,-500.0,0.0001726,2]
[351172005,1738389054896,-500.0,0.0001726,2]
[351172006,1738389054906,-500.0,0.0001726,2]
[351172007,1738389054916,-500.0,0.0001726,2]
[351172008,1738389054927,-54978.28,0.0001726,2]
[351172009,1738389054937,-633.5,0.0001726,2]
[351172010,1738389054947,-500.0,0.0001726,2]
[351172011,1738389054958,-500.0,0.0001726,2]
[351172012,1738389054969,-500.0,0.0001726,2]
[351172013,1738389054980,-500.0,0.0001726,2]
[351172014,1738389054991,-1043.7,0.0001726,2]
[351172015,1738389055002,-3190.69,0.0001726,2]
[351172016,1738389055013,-500.0,0.0001726,2]
[351172017,1738389055024,-500.0,0.0001726,2]
[351172018,1738389055036,-500.0,0.0001726,2]
[351172019,1738389055047,-1220.32,0.0001726,2]
[351172020,1738389055057,-635.75,0.0001726,2]
[351172021,1738389055068,-195.27902595,0.0001726,2]
[351172022,1738389055078,-500.0,0.0001726,2]
[351172023,1738389055088,-519.19,0.0001726,2]
[351172024,1738389055099,-500.0,0.0001726,2]
[351172025,1738389055109,-500.0,0.0001726,2]
[351172026,1738389055119,-500.0,0.0001726,2]
[351172027,1738389055129,-1075.25,0.0001726,2]
[351172028,1738389055140,-500.0,0.0001726,2]
[351172029,1738389055150,-500.0,0.0001726,2]
[351172030,1738389055160,-817.56,0.0001726,2]
[351172031,1738389055171,-500.0,0.0001726,2]
[351172032,1738389055181,-1839.94,0.0001726,2]
[351172033,1738389055192,-500.0,0.0001726,2]
[351172034,1738389055202,-500.0,0.0001726,2]
[351172035,1738389055212,-500.0,0.0001726,2]
[351172036,1738389055222,-825.7,0.0001726,2]
[351172037,1738389055232,-310.01,0.0001726,2]
[351172038,1738389055242,-549.67,0.0001726,2]
[351172039,1738389055252,-1034.38,0.0001726,2]
[351172040,1738389055262,-590.92,0.0001726,2]
[351172041,1738389055272,-2609.95,0.0001726,2]
[351172042,1738389055282,-500.0,0.0001726,2]
[351172043,1738389055296,-500.0,0.0001726,2]
[351172044,1738389055305,-500.0,0.0001726,2]
[351172045,1738389055314,-833.06,0.0001726,2]
[351172046,1738389055324,-500.0,0.0001726,2]
[351172047,1738389055334,-1159.11,0.0001726,2]
[351172048,1738389055344,-500.0,0.0001726,2]
[351172049,1738389055354,-500.0,0.0001726,2]
[351172050,1738389055364,-2715.24958313,0.00017297,2]
[351172051,1738389055374,-151.0,0.000173,2]
[351172052,1738389055384,-2190.92894837,0.00017314,2]
[351172053,1738389055395,-150.0,0.00017321,2]
[351172054,1738389055405,-2095.969,0.00017321,2]
[351172055,1738389055415,-537.0,0.00017321,2]
[351172056,1738389055424,-1470.483,0.00017321,2]
[351172057,1738389055434,-396.0,0.00017321,2]
[351172058,1738389055443,-500.0,0.00017397,2]
[351172059,1738389055453,-500.0,0.00017397,2]
[351172060,1738389055463,-500.0,0.00017397,2]
[351172061,1738389055473,-619.15,0.00017397,2]
[351172062,1738389055482,-500.0,0.00017397,2]
[351172063,1738389055492,-500.0,0.00017397,2]
[351172064,1738389055502,-500.0,0.00017397,2]
[351172065,1738389055511,-500.0,0.00017397,2]
[351172066,1738389055521,-500.0,0.00017397,2]
[351172067,1738389055531,-500.0,0.00017397,2]
[351172068,1738389055544,-500.0,0.00017397,2]
[351172069,1738389055554,-500.0,0.00017397,2]
[351172070,1738389055563,-500.0,0.00017397,2]
[351172071,1738389055574,-610.8,0.00017397,2]
[351172072,1738389055584,-500.0,0.00017397,2]
[351172073,1738389055593,-500.0,0.00017397,2]
[351172074,1738389055603,-297.27585428,0.00017397,2]
[351172075,1738389055613,-500.0,0.00017397,2]
[351172076,1738389055623,-500.0,0.00017397,2]
[351172077,1738389055633,-215.95007531,0.00017397,2]
[351172078,1738389055643,-54978.28,0.00017397,2]
[351172079,1738389055653,-633.5,0.00017397,2]
[351172080,1738389055664,-500.0,0.00017397,2]
[351172081,1738389055673,-500.0,0.00017397,2]
[351172082,1738389055683,-500.0,0.00017397,2]
[351172083,1738389055693,-500.0,0.00017397,2]
[351172084,1738389055703,-1043.7,0.00017397,2]
[351172085,1738389055713,-3190.69,0.00017397,2]
[351172086,1738389055722,-500.0,0.00017397,2]
[351172087,1738389055733,-500.0,0.00017397,2]
[351172088,1738389055743,-500.0,0.00017397,2]
[351172089,1738389055752,-1220.32,0.00017397,2]
[351172090,1738389055762,-635.75,0.00017397,2]
[351172091,1738389055771,-500.0,0.00017397,2]
[351172092,1738389055781,-519.19,0.00017397,2]
[351172093,1738389055796,-500.0,0.00017397,2]
[351172094,1738389055805,-500.0,0.00017397,2]
[351172095,1738389055814,-545.14119262,0.00017397,2]
[351172096,1738389055824,-1075.25,0.00017397,2]
[351172097,1738389055835,-500.0,0.00017397,2]
[351172098,1738389055844,-500.0,0.00017397,2]
[351172099,1738389055854,-817.56,0.00017397,2]
[351172100,1738389055864,-500.0,0.00017397,2]